bitfinex-derivatives/quotes_BTCF0:USTF0_20250108
["timestamp","ask_amount","ask_price","bid_price","bid_amount"]
[1736361302816,0.1,94620.0,94619.0,1.913651]
[1736361303012,0.1,94620.0,94619.0,1.5]
[1736361303203,0.15285,94620.0,94619.0,1.5]
[1736361303403,0.4608,94620.0,94611.0,0.3608]
[1736361303607,0.052854,94613.0,94611.0,0.3608]
[1736361303809,0.052851,94619.0,94612.0,1.5]
[1736361304010,0.4608,94620.0,94612.0,1.5]
[1736361304206,0.052854,94613.0,94612.0,1.5]
[1736361305014,0.052852,94617.0,94612.0,1.552855]
[1736361305424,0.4608,94620.0,94617.0,0.052852]
[1736361305719,0.4618,94620.0,94617.0,0.052852]
[1736361305904,0.101,94620.0,94617.0,0.052852]
[1736361306109,0.1,94620.0,94612.0,1.50356]
[1736361306309,0.1,94620.0,94616.0,0.052852]
[1736361306713,0.1,94620.0,94619.0,0.052851]
[1736361306911,0.1,94620.0,94617.0,0.002]
[1736361307121,0.052851,94618.0,94617.0,0.002]
[1736361308123,0.1,94620.0,94619.0,0.052851]
[1736361308313,0.1,94620.0,94619.0,0.413651]
[1736361308517,0.19482644,94620.0,94619.0,0.413651]
[1736361309422,0.19482644,94620.0,94619.0,0.3608]
[1736361309810,0.24767644,94620.0,94619.0,0.3618]
[1736361310119,0.24767644,94620.0,94619.0,0.001]
[1736361310307,0.15285,94620.0,94609.0,0.30878817]
[1736361310506,0.052856,94611.0,94610.0,1.5]
[1736361310715,0.3608,94618.0,94615.0,0.052853]
[1736361311020,0.1,94620.0,94619.0,0.052851]
[1736361311417,0.12634754,94635.0,94617.0,0.3608]
[1736361311418,0.12634754,94635.0,94630.0,0.052845]
[1736361311614,0.12634754,94635.0,94630.0,0.413645]
[1736361311809,0.12634754,94635.0,94630.0,1.913645]
[1736361312009,0.15791609,94634.0,94630.0,1.913645]
[1736361312209,0.15791609,94634.0,94633.0,0.052843]
[1736361313719,0.16291609,94634.0,94633.0,0.052843]
[1736361313925,0.005,94634.0,94633.0,0.052843]
[1736361314318,0.09493257,94635.0,94630.0,1.87227748]
[1736361314319,0.09493257,94635.0,94634.0,0.052843]
[1736361314620,0.22657676,94640.0,94639.0,0.05284]
[1736361314827,0.22657676,94640.0,94639.0,0.41364]
[1736361315327,0.1,94640.0,94639.0,0.41364]
[1736361315718,0.1,94640.0,94639.0,1.91364]
[1736361316722,0.052832,94653.0,94648.0,0.052835]
[1736361316921,0.052833,94651.0,94650.0,0.3608]
[1736361317518,0.052833,94651.0,94650.0,1.8608]
[1736361318321,0.01082917,94656.0,94650.0,1.8608]
[1736361318527,0.05283,94658.0,94650.0,1.913633]
[1736361319216,0.002,94651.0,94650.0,1.913633]
[1736361319722,0.1,94660.0,94657.0,0.05283]
[1736361319925,0.002,94658.0,94657.0,0.05283]
[1736361320221,0.002,94658.0,94651.0,0.052833]
[1736361320426,0.002,94658.0,94650.0,1.86136]
[1736361320427,0.052833,94652.0,94650.0,0.00056]
[1736361320631,0.3608,94653.0,94624.0,0.3608]
[1736361320632,0.052846,94628.0,94624.0,0.3608]
[1736361320828,0.052846,94628.0,94619.0,0.30934817]
[1736361321031,0.2001,94627.0,94623.0,0.36869854]
[1736361321332,0.052848,94624.0,94623.0,0.36869854]
[1736361321519,0.05286,94603.0,94602.0,1.50064]
[1736361321717,0.05286,94603.0,94602.0,1.5]
[1736361321931,0.3608,94618.0,94602.0,1.5]
[1736361322237,0.3608,94618.0,94605.0,0.3608]
[1736361322722,0.3608,94618.0,94606.0,0.052858]
[1736361322925,0.3608,94618.0,94605.0,0.3608]
[1736361323129,0.3608,94618.0,94608.0,0.10736938]
[1736361323422,0.3618,94618.0,94606.0,0.052858]
[1736361323625,0.3618,94618.0,94613.0,0.052854]
[1736361324224,0.3618,94618.0,94605.0,0.3688]
[1736361324533,0.001,94618.0,94617.0,0.052852]
[1736361325033,0.01104149,94629.0,94626.0,0.052847]
[1736361325231,0.12657676,94632.0,94628.0,1.8608]
[1736361325529,0.01118124,94632.0,94628.0,1.8608]
[1736361325831,0.052843,94633.0,94628.0,1.8608]
[1736361326437,0.002,94632.0,94628.0,1.8608]
[1736361326736,0.054844,94632.0,94628.0,1.8608]
[1736361327029,0.052844,94632.0,94628.0,1.8608]
[1736361328534,0.052844,94632.0,94628.0,1.8628]
[1736361329823,0.72984001,94647.0,94628.0,1.8628]
[1736361329824,0.36204001,94647.0,94628.0,1.8628]
[1736361330028,0.37179087,94647.0,94639.0,0.3608]
[1736361330230,0.37179087,94647.0,94628.0,1.86336]
[1736361330425,0.052845,94630.0,94628.0,1.8628]
[1736361330621,0.052845,94629.0,94628.0,1.8628]
[1736361330939,0.052845,94629.0,94628.0,0.3628]
[1736361332229,0.052845,94629.0,94628.0,0.002]
[1736361332731,0.052851,94618.0,94617.0,1.5]
[1736361334534,0.01105358,94629.0,94617.0,1.8608]
[1736361334725,0.1967,94630.0,94617.0,1.8608]
[1736361334726,0.052846,94628.0,94617.0,1.8608]
[1736361334926,0.052846,94628.0,94624.0,0.052848]
[1736361335229,0.01082432,94630.0,94619.0,0.052851]
[1736361335427,0.3608,94631.0,94617.0,1.8614]
[1736361335635,0.052847,94626.0,94621.0,0.05285]
[1736361336121,0.001,94628.0,94621.0,0.05285]
[1736361336328,0.12657676,94623.0,94621.0,0.05285]
[1736361337237,0.052851,94618.0,94617.0,1.50056]
[1736361337437,0.052851,94618.0,94617.0,1.5]
[1736361339735,0.052851,94618.0,94617.0,1.501]
[1736361340043,0.15907609,94622.0,94621.0,0.05285]
[1736361340242,0.15791609,94622.0,94621.0,0.05285]
[1736361340431,0.15791609,94626.0,94625.0,0.052848]
[1736361340631,0.15791609,94626.0,94625.0,0.413648]
[1736361340929,0.18949931,94637.0,94636.0,0.052841]
[1736361341133,0.18949931,94637.0,94636.0,0.413641]
[1736361341834,0.18949931,94637.0,94636.0,1.913641]
[1736361342252,0.13725865,94642.0,94638.0,0.05284]
[1736361342440,0.12633602,94642.0,94638.0,0.05284]
[1736361342641,0.052841,94637.0,94636.0,1.50056]
[1736361342836,0.052841,94637.0,94636.0,1.5]
[1736361343143,0.413641,94637.0,94636.0,1.5]
[1736361343443,0.421641,94637.0,94636.0,0.001]
[1736361344939,0.052845,94630.0,94628.0,0.052846]
[1736361345133,0.052842,94635.0,94629.0,0.052845]
[1736361345435,0.01097176,94645.0,94644.0,0.052837]
[1736361345630,0.12633602,94649.0,94641.0,0.3608]
[1736361345831,0.12633602,94649.0,94648.0,0.052835]
[1736361346043,0.48713602,94655.0,94654.0,0.052831]
[1736361346237,0.48713602,94655.0,94648.0,1.5006]
[1736361346446,0.052832,94653.0,94649.0,0.052834]
[1736361347536,0.052832,94653.0,94651.0,0.052833]
[1736361347735,0.01077633,94655.0,94654.0,0.052831]
[1736361347937,0.1,94660.0,94659.0,0.052829]
[1736361348135,0.1,94660.0,94659.0,0.413629]
[1736361348840,0.11421872,94680.0,94659.0,0.413629]
[1736361348841,0.1,94680.0,94659.0,0.413629]
[1736361349145,0.12633602,94678.0,94669.0,0.052823]
[1736361349448,0.12633602,94678.0,94676.0,0.052819]
[1736361349634,0.12633602,94678.0,94670.0,0.189]
[1736361349836,0.12633602,94678.0,94677.0,1.552819]
[1736361350334,0.12633602,94678.0,94677.0,1.913619]
[1736361351931,0.007,94678.0,94677.0,1.913619]
[1736361352541,0.1,94680.0,94678.0,0.052818]
[1736361352737,0.1,94680.0,94679.0,0.052817]
[1736361353244,0.052818,94678.0,94677.0,0.0006]
[1736361353550,0.1,94680.0,94668.0,0.3608]
[1736361353747,0.1,94680.0,94670.0,0.1610256]
[1736361353942,0.1,94680.0,94679.0,0.052817]
[1736361354740,0.1,94680.0,94669.0,1.5]
[1736361355048,0.3608,94679.0,94669.0,1.5]
[1736361355444,0.3608,94679.0,94676.0,0.052819]
[1736361356244,0.3608,94679.0,94678.0,0.052818]
[1736361356544,0.1,94680.0,94679.0,0.052817]
[1736361356956,0.1,94680.0,94676.0,0.052819]
[1736361357335,0.1,94680.0,94669.0,0.00456]
[1736361357536,0.2610256,94680.0,94669.0,0.004]
[1736361357750,0.052822,94670.0,94667.0,0.052824]
[1736361358341,0.3608,94670.0,94660.0,1.89786]
[1736361358649,0.052824,94667.0,94664.0,0.052826]
[1736361359548,0.052822,94671.0,94662.0,0.052827]
[1736361359740,0.052823,94670.0,94660.0,1.89786]
[1736361359936,0.052823,94670.0,94668.0,0.052824]
[1736361360548,0.4608,94680.0,94679.0,0.052817]
[1736361360747,0.1,94680.0,94679.0,0.052817]
[1736361361339,0.1,94680.0,94679.0,1.552817]
[1736361361542,0.12633602,94690.0,94679.0,1.552817]
[1736361361741,0.12633602,94690.0,94689.0,0.052812]
[1736361362450,0.1,94700.0,94699.0,0.052806]
[1736361365450,0.1,94700.0,94699.0,0.06368926]
[1736361365645,0.12633602,94712.0,94711.0,0.0528]
[1736361365843,1e-08,94712.0,94711.0,0.4136]
[1736361366244,1e-08,94712.0,94711.0,1.9136]
[1736361366953,0.1,94720.0,94719.0,0.052795]
[1736361367455,0.3608,94733.0,94719.0,0.413595]
[1736361367649,0.3608,94733.0,94720.0,0.3628256]
[1736361367851,0.1,94740.0,94728.0,0.3608]
[1736361368248,0.3608,94734.0,94720.0,0.2018]
[1736361368551,0.1610256,94730.0,94726.0,0.052791]
[1736361368747,0.3608,94734.0,94720.0,0.3628256]
[1736361369055,0.11060493,94740.0,94729.0,0.3608]
[1736361369354,0.104,94740.0,94738.0,0.413584]
[1736361369548,0.18949931,94750.0,94749.0,0.052778]
[1736361369749,0.18949931,94750.0,94749.0,0.413578]
[1736361370055,0.413575,94755.0,94749.0,0.052778]
[1736361370244,0.01080124,94756.0,94749.0,0.052778]
[1736361370440,0.18949931,94758.0,94750.0,1.5]
[1736361370952,0.3608,94756.0,94738.0,0.3608]
[1736361371146,0.052778,94749.0,94741.0,0.052783]
[1736361372052,0.052778,94750.0,94739.0,0.052784]
[1736361372272,0.052778,94750.0,94744.0,0.052781]
[1736361372752,0.009,94749.0,94741.0,0.001]
[1736361372958,0.052782,94743.0,94741.0,0.001]
[1736361373151,0.052789,94730.0,94723.0,0.052792]
[1736361373345,0.052786,94736.0,94714.0,0.01104093]
[1736361373670,0.3608,94737.0,94734.0,0.052786]
[1736361373957,0.052788,94732.0,94721.0,0.052794]
[1736361374146,0.3608,94737.0,94717.0,1.50056]
[1736361374347,0.3608,94727.0,94723.0,0.052793]
[1736361374547,0.38886151,94742.0,94726.0,0.3608]
[1736361374751,0.38770151,94742.0,94740.0,0.052783]
[1736361375054,0.01090151,94742.0,94734.0,0.053787]
[1736361375356,0.052786,94736.0,94717.0,0.00056]
[1736361375544,0.052795,94719.0,94717.0,0.00056]
[1736361375743,0.3608,94725.0,94708.0,0.3608]
[1736361375941,0.052796,94717.0,94709.0,1.552801]
[1736361376144,0.052799,94713.0,94709.0,1.5]
[1736361376351,0.3608,94725.0,94709.0,1.5]
[1736361376548,0.002,94727.0,94720.0,0.3608]
[1736361376745,0.002,94727.0,94726.0,0.052791]
[1736361376947,0.052783,94741.0,94720.0,0.3608]
[1736361377150,0.009,94742.0,94732.0,0.052787]
[1736361377360,0.1610256,94740.0,94733.0,1.5]
[1736361377559,0.052787,94734.0,94733.0,1.5]
[1736361378260,0.01076275,94740.0,94737.0,0.052785]
[1736361378261,0.06354575,94740.0,94737.0,0.052785]
[1736361378868,0.3668,94738.0,94737.0,0.052785]
[1736361379773,0.006,94738.0,94737.0,0.052785]
[1736361380358,0.17190708,94750.0,94741.0,0.052782]
[1736361380659,0.17190708,94750.0,94737.0,0.001]
[1736361381458,0.052778,94749.0,94741.0,0.001]
[1736361381764,0.18090708,94750.0,94741.0,0.001]
[1736361382063,0.413582,94742.0,94737.0,0.001]
[1736361382258,0.3608,94741.0,94711.0,0.3608]
[1736361382462,0.1610256,94721.0,94711.0,0.3608]
[1736361382657,0.1610256,94721.0,94704.0,0.18448469]
[1736361382658,0.052803,94706.0,94704.0,0.18448469]
[1736361382850,0.0528,94712.0,94706.0,0.052802]
[1736361383056,0.0528,94712.0,94707.0,1.5]
[1736361383358,0.052801,94709.0,94707.0,1.5]
[1736361383751,0.3608,94717.0,94715.0,0.052797]
[1736361384067,0.00120001,94720.0,94719.0,0.052795]
[1736361384264,0.001,94712.0,94711.0,0.4136]
[1736361384963,0.05279,94729.0,94722.0,0.052793]
[1736361385164,0.3608,94727.0,94715.0,0.002]
[1736361385365,0.052795,94719.0,94715.0,0.002]
[1736361385561,0.052797,94716.0,94715.0,0.002]
[1736361386457,0.052798,94714.0,94711.0,1.50456]
[1736361386664,0.002,94719.0,94711.0,1.504]
[1736361386862,0.3904,94716.0,94711.0,1.504]
[1736361387170,0.052799,94713.0,94711.0,1.5]
[1736361387866,0.052799,94713.0,94711.0,1.501]
[1736361388266,0.3924,94716.0,94711.0,1.5]
[1736361388467,0.001,94713.0,94711.0,1.5]
[1736361388661,0.001,94713.0,94712.0,0.052799]
[1736361390059,0.001,94713.0,94712.0,1.552799]
[1736361390758,0.001,94713.0,94712.0,1.501]
[1736361391367,0.1861,94713.0,94712.0,1.501]
[1736361391569,0.238898,94713.0,94712.0,1.501]
[1736361392164,0.1861,94713.0,94685.0,0.3608]
[1736361392369,0.05281,94693.0,94690.0,0.052811]
[1736361392669,0.05281,94693.0,94691.0,1.5]
[1736361392867,0.3794,94704.0,94691.0,1.5]
[1736361393068,0.3608,94695.0,94691.0,1.5]
[1736361393271,0.05281,94692.0,94691.0,1.5]
[1736361395071,0.05437687,94692.0,94691.0,1.5]
[1736361396060,0.052814,94686.0,94685.0,0.3608]
[1736361396571,0.1887,94691.0,94685.0,1.8608]
[1736361396768,0.003,94692.0,94691.0,0.052811]
[1736361397167,0.004,94692.0,94691.0,0.052811]
[1736361397362,0.002,94692.0,94691.0,0.052811]
[1736361398171,0.004,94692.0,94691.0,0.052811]
[1736361398472,0.004,94692.0,94691.0,1.552811]
[1736361398673,0.002,94692.0,94691.0,1.552811]
[1736361400265,0.003,94692.0,94691.0,1.552811]
[1736361400466,0.05581,94692.0,94691.0,1.552811]
[1736361400868,0.05581,94692.0,94685.0,0.3608]
[1736361400869,0.052814,94686.0,94685.0,0.3608]
[1736361401472,0.052814,94686.0,94685.0,1.8608]
[1736361403371,0.052814,94686.0,94685.0,1.913614]
[1736361403372,0.001,94686.0,94685.0,1.913614]
[1736361403882,0.052805,94702.0,94685.0,2.2216]
[1736361404071,0.052805,94702.0,94696.0,0.3608]
[1736361404379,0.3608,94710.0,94704.0,0.052803]
[1736361404570,0.3608,94710.0,94697.0,0.3867]
[1736361404571,0.01074537,94710.0,94709.0,0.052801]
[1736361404771,0.01074537,94710.0,94705.0,0.3608]
[1736361404772,0.3608,94724.0,94717.0,0.052796]
[1736361404976,0.052795,94720.0,94705.0,0.3608]
[1736361405174,0.052795,94720.0,94718.0,0.052795]
[1736361405484,0.37181848,94724.0,94706.0,1.5]
[1736361405681,0.37181848,94724.0,94723.0,0.052793]
[1736361405877,0.15771483,94727.0,94716.0,0.3608]
[1736361406083,0.3608,94742.0,94726.0,0.413591]
[1736361406267,0.01063634,94742.0,94727.0,0.391]
[1736361406473,0.052783,94741.0,94740.0,0.3608]
[1736361406884,0.052785,94737.0,94727.0,0.1987]
[1736361407184,0.16874735,94746.0,94744.0,0.052781]
[1736361407185,0.15771483,94746.0,94744.0,0.052781]
[1736361407377,0.15771483,94746.0,94745.0,0.3608]
[1736361407571,0.01065037,94748.0,94745.0,0.3608]
[1736361407872,0.3608,94759.0,94745.0,0.3608]
[1736361408068,0.05278,94747.0,94746.0,1.5]
[1736361408477,0.052777,94753.0,94746.0,1.5]
[1736361409798,0.005,94747.0,94746.0,1.5]
[1736361410289,0.05778,94747.0,94746.0,1.501]
[1736361410680,0.005,94747.0,94746.0,0.05278]
[1736361410875,0.005,94747.0,94746.0,0.05378]
[1736361411076,0.005,94747.0,94746.0,0.41458]
[1736361411385,0.014,94747.0,94746.0,0.41458]
[1736361411579,0.009,94747.0,94746.0,0.41458]
[1736361411979,0.009,94747.0,94746.0,1.91458]
[1736361412383,0.014,94747.0,94746.0,1.91458]
[1736361413590,0.014,94747.0,94746.0,1.8618]
[1736361413792,0.014,94747.0,94746.0,0.001]
[1736361414087,0.014,94747.0,94746.0,0.05378]
[1736361416290,0.014,94747.0,94746.0,0.001]
[1736361416784,0.052791,94727.0,94721.0,0.240194]
[1736361416989,0.052791,94727.0,94721.0,0.052794]
[1736361417695,0.052791,94727.0,94722.0,0.052793]
[1736361418081,0.053791,94727.0,94722.0,0.052793]
[1736361418276,0.052793,94722.0,94721.0,1.50064]
[1736361418480,0.052793,94722.0,94721.0,1.5]
[1736361419484,0.052793,94722.0,94700.0,0.3608]
[1736361419689,0.3608,94724.0,94700.0,0.3608]
[1736361419880,0.3608,94724.0,94720.0,0.052794]
[1736361420077,0.0117245,94727.0,94712.0,0.3608]
[1736361420285,0.001,94727.0,94726.0,0.052791]
[1736361421491,0.002,94727.0,94726.0,0.052791]
[1736361421994,0.001,94727.0,94726.0,0.052791]
[1736361422381,0.3608,94744.0,94743.0,0.052782]
[1736361422693,0.2903,94760.0,94737.0,0.3608]
[1736361422694,0.5218256,94753.0,94737.0,0.3608]
[1736361422888,0.5218256,94753.0,94733.0,0.052787]
[1736361423087,0.052787,94734.0,94733.0,0.052787]
[1736361423487,0.3608,94745.0,94731.0,0.3608]
[1736361423684,0.052777,94751.0,94741.0,0.052783]
[1736361423890,0.011823,94753.0,94743.0,0.053782]
[1736361423891,0.008,94744.0,94743.0,0.053782]
[1736361424394,0.052781,94745.0,94743.0,0.413582]
[1736361425194,0.3608,94751.0,94745.0,0.052781]
[1736361425695,0.3608,94751.0,94744.0,1.5006]
[1736361425990,0.052781,94744.0,94743.0,0.001]
[1736361426185,0.3608,94751.0,94716.0,0.052796]
[1736361426186,0.052793,94723.0,94716.0,0.052796]
[1736361426380,0.052798,94715.0,94711.0,0.052799]
[1736361426687,0.052798,94715.0,94703.0,0.76234]
[1736361426688,0.052796,94717.0,94712.0,0.052799]
[1736361426890,0.052793,94722.0,94713.0,1.5]
[1736361427191,0.3608,94725.0,94713.0,1.5]
[1736361427392,0.1610256,94723.0,94713.0,1.5]
[1736361427584,0.052798,94714.0,94713.0,1.5]
[1736361429479,0.052798,94714.0,94713.0,1.506]
[1736361430288,0.052798,94714.0,94713.0,1.507]
[1736361430692,0.053798,94714.0,94713.0,1.501]
[1736361431192,0.053798,94714.0,94713.0,1.5]
[1736361431694,0.06453404,94714.0,94713.0,1.5]
[1736361433195,0.06653404,94714.0,94713.0,1.5]
[1736361433384,0.42733404,94714.0,94713.0,1.5]
[1736361433800,0.42833404,94714.0,94703.0,0.3608]
[1736361433992,0.052804,94704.0,94703.0,0.3608]
[1736361434694,0.052804,94703.0,94689.0,0.052812]
[1736361434894,0.052811,94691.0,94690.0,1.5]
[1736361435294,0.3608,94694.0,94684.0,0.18448469]
[1736361435604,0.052814,94685.0,94681.0,0.052816]
[1736361435800,0.052814,94685.0,94682.0,1.5]
[1736361436292,0.1610256,94690.0,94683.0,0.052815]
[1736361436694,0.052814,94686.0,94682.0,1.5006]
[1736361436900,0.052814,94686.0,94682.0,1.5]
[1736361437301,0.05281,94692.0,94685.0,0.052814]
[1736361437506,0.052811,94690.0,94685.0,0.052814]
[1736361437801,0.37137049,94694.0,94683.0,0.003]
[1736361437802,0.052813,94687.0,94683.0,0.003]
[1736361437995,0.052815,94684.0,94683.0,0.003]
[1736361438506,0.14745144,94700.0,94683.0,0.003]
[1736361438507,0.09464544,94700.0,94683.0,0.003]
[1736361438697,0.1610256,94693.0,94687.0,0.3608]
[1736361439000,0.052812,94688.0,94687.0,0.3608]
[1736361439198,0.1610256,94693.0,94687.0,0.413613]
[1736361439494,0.1610256,94693.0,94688.0,1.5]
[1736361439994,0.5218256,94693.0,94688.0,1.5]
[1736361440194,0.052812,94689.0,94688.0,1.5]
[1736361440388,0.3608,94690.0,94670.0,0.4015]
[1736361440586,0.052825,94666.0,94659.0,0.052829]
[1736361440807,0.2138486,94670.0,94663.0,0.052826]
[1736361440997,0.052825,94665.0,94660.0,0.052828]
[1736361441303,0.052825,94665.0,94663.0,0.052826]
[1736361441597,0.052826,94664.0,94660.0,0.3608]
[1736361441791,0.052827,94661.0,94660.0,0.3608]
[1736361442297,0.052832,94653.0,94652.0,1.86136]
[1736361442606,0.3608,94662.0,94655.0,0.052831]
[1736361442607,0.05283,94657.0,94655.0,0.052831]
[1736361443198,0.3608,94662.0,94660.0,0.003]
[1736361443393,0.052827,94661.0,94660.0,0.003]
[1736361443595,0.0110068,94664.0,94660.0,0.3638]
[1736361443793,0.052821,94673.0,94660.0,0.3608]
[1736361443995,0.09464544,94667.0,94666.0,0.052825]
[1736361444900,0.12584769,94672.0,94671.0,0.052822]
[1736361445100,0.12584769,94672.0,94671.0,0.413622]
[1736361445302,0.12584769,94695.0,94672.0,0.052821]
[1736361445600,0.052814,94685.0,94683.0,0.052815]
[1736361445806,0.052814,94685.0,94684.0,0.052815]
[1736361446002,0.1610256,94690.0,94688.0,0.052812]
[1736361446207,0.052811,94691.0,94688.0,0.052812]
[1736361446407,0.052811,94691.0,94689.0,1.5]
[1736361446596,0.052811,94690.0,94689.0,1.5]
[1736361446792,0.052811,94690.0,94671.0,0.37158513]
[1736361446793,0.052821,94672.0,94671.0,0.3608]
[1736361447108,0.1610256,94681.0,94666.0,0.052824]
[1736361447297,0.052822,94671.0,94667.0,1.5]
[1736361447697,0.052824,94668.0,94667.0,1.5]
[1736361447903,0.05283,94657.0,94650.0,0.3608]
[1736361448102,0.052831,94655.0,94650.0,0.3608]
[1736361448408,0.052831,94655.0,94650.0,0.413634]
[1736361449102,0.052831,94655.0,94651.0,0.052833]
[1736361450105,0.052829,94659.0,94650.0,0.3608]
[1736361450296,0.052831,94655.0,94652.0,0.052832]
[1736361451134,0.052831,94655.0,94651.0,0.002]
[1736361451310,0.052831,94655.0,94653.0,0.052832]
[1736361452003,0.01071987,94658.0,94652.0,0.002]
[1736361452317,0.052829,94658.0,94654.0,0.052831]
[1736361452608,0.001,94655.0,94653.0,0.052832]
[1736361452810,0.001,94655.0,94654.0,0.052831]
[1736361454011,0.001,94655.0,94654.0,0.053831]
[1736361454404,0.001,94658.0,94654.0,0.053831]
[1736361454999,0.05283,94657.0,94655.0,1.5]
[1736361455401,0.37166939,94661.0,94654.0,0.001]
[1736361455606,0.05283,94656.0,94654.0,0.001]
[1736361456716,0.05283,94656.0,94642.0,1.5]
[1736361456903,0.05283,94656.0,94654.0,0.001]
[1736361457616,0.01,94656.0,94642.0,1.5]
[1736361457913,0.052837,94645.0,94642.0,1.5]
[1736361459510,0.052833,94651.0,94642.0,1.552838]
[1736361459709,0.052834,94650.0,94642.0,1.552838]
[1736361459905,0.005,94656.0,94642.0,1.552838]
[1736361460113,0.052836,94646.0,94642.0,1.552838]
[1736361460309,0.01569868,94656.0,94642.0,1.5]
[1736361460510,0.001,94645.0,94642.0,1.5]
[1736361460705,0.052838,94643.0,94642.0,1.5]
[1736361461105,0.052839,94641.0,94637.0,0.052841]
[1736361461519,0.052839,94641.0,94638.0,1.5]
[1736361462819,0.053839,94641.0,94638.0,1.5]
[1736361463710,0.001,94641.0,94640.0,0.052839]
[1736361464311,0.001,94641.0,94640.0,1.552839]
[1736361465216,0.002,94641.0,94640.0,1.552839]
[1736361465412,0.054839,94641.0,94640.0,1.5]
[1736361465607,0.002,94641.0,94640.0,1.5]
[1736361466121,0.001,94641.0,94640.0,1.552839]
[1736361466316,0.002,94641.0,94640.0,1.552839]
[1736361467125,0.001,94641.0,94640.0,1.553839]
[1736361467711,0.002,94641.0,94640.0,1.557839]
[1736361468414,0.001,94641.0,94640.0,1.556839]
[1736361469322,0.12584769,94662.0,94640.0,1.556839]
[1736361469323,0.12584769,94662.0,94661.0,0.052827]
[1736361469620,0.15729549,94668.0,94661.0,0.052827]
[1736361469621,0.15729549,94668.0,94661.0,0.413627]
[1736361469835,0.18814908,94674.0,94667.0,0.413624]
[1736361470009,0.05798708,94674.0,94673.0,0.413621]
[1736361470211,0.21950727,94687.0,94673.0,0.413621]
[1736361470212,0.21950727,94687.0,94686.0,0.052814]
[1736361470416,0.0926944,94697.0,94696.0,0.052808]
[1736361470628,0.0915344,94697.0,94696.0,0.052808]
[1736361470819,0.052807,94698.0,94696.0,1.5]
[1736361471118,0.052809,94695.0,94694.0,0.3608]
[1736361472422,0.052809,94695.0,94694.0,0.35968816]
[1736361474214,0.053809,94695.0,94694.0,0.35968816]
[1736361474615,0.001,94695.0,94694.0,0.35968816]
[1736361475418,0.3608,94696.0,94680.0,0.18634393]
[1736361475620,0.052817,94679.0,94678.0,0.24845858]
[1736361477013,0.052817,94679.0,94654.0,0.83464]
[1736361477014,0.052817,94679.0,94659.0,0.18614417]
[1736361477220,0.052828,94660.0,94659.0,0.18614417]
[1736361478719,0.05283,94656.0,94655.0,0.24845858]
[1736361479223,0.052837,94645.0,94638.0,0.05284]
[1736361479720,0.052837,94645.0,94639.0,1.5]
[1736361480129,0.2138536,94660.0,94639.0,1.5]
[1736361480130,0.052839,94641.0,94639.0,1.5]
[1736361480324,0.413635,94647.0,94639.0,1.5]
[1736361480630,0.052836,94646.0,94639.0,1.5]
[1736361480820,0.3608,94647.0,94639.0,1.5]
[1736361481126,0.052837,94644.0,94639.0,1.5]
[1736361481528,0.3608,94647.0,94641.0,0.052838]
[1736361481919,0.3608,94647.0,94639.0,1.5006]
[1736361482120,0.3608,94647.0,94639.0,1.502]
[1736361482627,0.3608,94647.0,94641.0,0.002]
[1736361483219,0.3608,94647.0,94640.0,0.052839]
[1736361483920,0.052839,94641.0,94639.0,1.50256]
[1736361484124,0.052839,94641.0,94639.0,1.502]
[1736361484932,0.052839,94641.0,94639.0,1.5]
[1736361485632,0.053839,94641.0,94639.0,1.5]
[1736361486326,0.053839,94641.0,94639.0,1.501]
[1736361486723,0.1952,94640.0,94639.0,1.501]
[1736361488122,0.1952,94640.0,94639.0,1.5]
[1736361488735,0.1972,94640.0,94639.0,1.5]
[1736361489230,0.248039,94640.0,94639.0,1.5]
[1736361489432,0.248039,94640.0,94627.0,0.052846]
[1736361489433,0.052844,94632.0,94627.0,0.052846]
[1736361489936,0.052844,94632.0,94628.0,1.5]
[1736361490437,0.052844,94632.0,94628.0,1.552846]
[1736361490632,0.1992,94640.0,94628.0,1.552846]
[1736361490633,0.004,94640.0,94637.0,0.05284]
[1736361491241,0.004,94640.0,94639.0,0.41364]
[1736361491631,0.002,94640.0,94639.0,0.41364]
[1736361491831,0.002,94640.0,94639.0,1.91364]
[1736361492137,0.3608,94673.0,94650.0,0.052833]
[1736361492358,0.54991199,94682.0,94663.0,0.3608]
[1736361492638,0.05282,94674.0,94671.0,0.052822]
[1736361492839,0.05282,94674.0,94663.0,0.3608]
[1736361493037,0.19978022,94682.0,94664.0,0.105651]
[1736361493232,0.3608,94697.0,94651.0,0.3884]
[1736361493233,0.05281,94692.0,94688.0,0.052812]
[1736361493540,0.052812,94690.0,94682.0,0.052815]
[1736361493732,0.052812,94690.0,94684.0,0.052814]
[1736361493937,0.052812,94690.0,94689.0,1.5]
[1736361494145,0.3608,94697.0,94679.0,0.3608]
[1736361494343,0.052814,94686.0,94679.0,0.3608]
[1736361494531,0.052814,94686.0,94679.0,0.413617]
[1736361494843,0.052814,94686.0,94680.0,1.5]
[1736361495045,0.052814,94685.0,94680.0,1.5]
[1736361495642,0.007,94682.0,94680.0,1.5]
[1736361496033,0.052814,94685.0,94680.0,1.5]
[1736361496230,0.061814,94685.0,94680.0,1.5]
[1736361496533,0.066814,94685.0,94681.0,0.052816]